bitfinex/quotes_ETHUSD_20241225
["timestamp","ask_amount","ask_price","bid_price","bid_amount"]
[1735162116741,2.311,3461.7,3461.6,35.0]
[1735162119831,2.31149,3461.0,3460.6,0.8277]
[1735162120144,0.8197,3461.7,3460.6,0.99803529]
[1735162120441,2.31119,3461.5,3461.0,35.0]
[1735162121229,0.8197,3461.7,3461.0,35.0]
[1735162121451,3.1311,3461.1,3461.0,35.0]
[1735162121659,5.80460933,3461.1,3459.7,0.8277]
[1735162121936,2.31191,3460.4,3459.7,0.8277]
[1735162122239,2.31191,3460.4,3459.8,35.0]
[1735162122542,2.31194,3460.3,3459.8,35.0]
[1735162125504,2.31194,3460.3,3459.7,0.8277]
[1735162125988,0.8197,3460.8,3459.7,0.8277]
[1735162126720,2.31173,3460.7,3459.7,0.8277]
[1735162127531,0.8197,3460.8,3459.7,0.8277]
[1735162127738,2.31142,3461.1,3459.4,5.31251]
[1735162127739,3.09483,3461.1,3460.0,0.7592]
[1735162127945,2.31173,3460.6,3460.2,0.7915]
[1735162128086,1.1960892,3461.3,3460.2,0.7915]
[1735162128287,3.5073692,3461.3,3460.3,0.7915]
[1735162128525,3.5073692,3461.3,3460.4,0.7915]
[1735162128839,1.1960892,3461.3,3460.6,0.7915]
[1735162129044,2.31138,3461.2,3460.6,0.7915]
[1735162129705,2.31107,3461.6,3460.6,0.7915]
[1735162129889,2.3114,3461.2,3460.6,0.7915]
[1735162130289,0.7988,3461.7,3460.6,0.7915]
[1735162130489,0.7988,3461.7,3460.6,0.94108873]
[1735162130490,2.3115,3461.0,3460.6,0.94108873]
[1735162130689,2.3115,3461.0,3460.6,0.7915]
[1735162131507,2.31161,3460.8,3460.6,0.7915]
[1735162134343,2.31107,3461.6,3460.6,0.7915]
[1735162134551,2.31134,3461.2,3460.6,0.7915]
[1735162134755,2.3114,3461.1,3460.6,0.7915]
[1735162136240,2.31107,3461.6,3460.6,0.7915]
[1735162136448,2.31121,3461.4,3460.6,0.7915]
[1735162136953,2.31155,3460.9,3460.6,0.7915]
[1735162137621,2.31176,3460.6,3460.2,0.7915]
[1735162138854,0.7988,3461.5,3460.2,0.7915]
[1735162138855,2.3116,3460.9,3460.2,0.7915]
[1735162140057,2.3116,3460.8,3460.2,0.7915]
[1735162140362,2.3116,3460.8,3459.8,0.7699]
[1735162140363,2.31209,3460.1,3459.8,0.7699]
[1735162142973,2.31197,3460.3,3459.8,0.7699]
[1735162146121,2.3122,3459.9,3459.8,0.7699]
[1735162146341,2.31147,3461.0,3459.3,0.7699]
[1735162146342,2.31207,3460.1,3459.3,0.7699]
[1735162146521,2.3124,3459.6,3459.3,0.7699]
[1735162146733,0.7934,3460.2,3459.4,0.1972772]
[1735162147816,2.31225,3459.9,3459.4,0.1972772]
[1735162148213,2.31227,3459.8,3459.4,0.1972772]
[1735162148912,2.31227,3459.8,3459.3,0.7699]
[1735162152517,2.31216,3460.0,3459.3,0.7699]
[1735162153010,3.10524,3460.5,3459.3,0.7699]
[1735162153171,0.7934,3460.7,3459.3,0.7699]
[1735162153475,2.31227,3459.8,3459.3,1.14689]
[1735162154476,0.8321,3460.2,3459.3,1.14689]
[1735162154642,2.31236,3459.7,3459.3,0.7699]
[1735162155227,2.31221,3459.9,3459.3,0.7699]
[1735162155546,2.31192,3460.4,3459.3,0.7699]
[1735162155547,2.31214,3460.0,3459.3,0.7699]
[1735162158247,2.31193,3460.3,3459.3,0.7699]
[1735162158438,2.31207,3460.1,3459.3,0.7699]
[1735162158632,2.626453,3460.2,3459.3,0.7699]
[1735162158633,2.3123,3459.8,3459.3,0.7699]
[1735162159684,0.314403,3460.2,3459.3,0.7699]
[1735162159900,2.31219,3460.0,3459.3,0.7699]
[1735162163326,2.31196,3460.3,3459.5,0.7739]
[1735162164177,2.31182,3460.5,3459.5,0.7739]
[1735162166622,2.31188,3460.4,3459.5,0.7739]
[1735162166770,2.31188,3460.4,3459.6,1.70828739]
[1735162166973,2.0281892,3461.0,3459.6,1.70828739]
[1735162167169,2.3116,3460.8,3459.6,0.7739]
[1735162167401,2.31213,3460.1,3459.6,0.7739]
[1735162170222,2.31193,3460.3,3459.6,0.7739]
[1735162175673,2.31193,3460.3,3460.2,35.759]
[1735162178656,2.31193,3460.3,3460.2,35.0]
[1735162180647,2.31215,3460.0,3459.5,0.759]
[1735162180833,2.31215,3460.0,3459.5,1.31390744]
[1735162181331,2.31215,3460.0,3459.6,35.0]
[1735162182132,2.31201,3460.2,3459.6,35.0]
[1735162182331,2.31192,3460.4,3459.7,0.759]
[1735162182637,2.31192,3460.4,3459.8,2.84628631]
[1735162182866,2.31192,3460.4,3459.7,0.759]
[1735162183053,2.31192,3460.4,3459.9,35.0]
[1735162185477,1.1960892,3460.5,3459.9,35.0]
[1735162185648,2.31194,3460.3,3459.9,35.0]
[1735162186174,2.31208,3460.1,3459.9,35.0]
[1735162188264,1.1960892,3460.3,3459.9,35.0]
[1735162188464,3.5080292,3460.3,3459.9,37.84628631]
[1735162188664,2.31201,3460.2,3459.9,37.84628631]
[1735162189366,1.1960892,3460.4,3459.9,37.84628631]
[1735162189680,3.5079792,3460.4,3459.9,37.84628631]
[1735162189999,2.31194,3460.3,3459.9,37.84628631]
[1735162190200,2.31194,3460.3,3460.0,2.84628631]
[1735162191499,3.5080292,3460.3,3460.0,2.84628631]
[1735162193143,1.27280245,3460.2,3460.0,2.84628631]
[1735162193500,1.27280245,3460.2,3459.7,0.759]
[1735162193845,1.27280245,3460.2,3460.1,35.0]
[1735162194950,1.1960892,3460.3,3460.2,0.7583]
[1735162196343,2.990223,3460.8,3460.2,3.26669253]
[1735162196344,1.27302422,3460.8,3460.2,3.26669253]
[1735162196651,1.27302422,3460.8,3460.3,2.84628631]
[1735162197548,1.27302422,3460.8,3460.4,0.7583]
[1735162198048,1.1960892,3461.0,3460.4,0.7583]
[1735162198289,1.1960892,3461.0,3460.5,0.36045863]
[1735162198545,1.1960892,3461.0,3460.5,35.0]
[1735162199007,1.1960892,3461.0,3460.6,0.7583]
[1735162199441,1.27220652,3461.0,3460.6,0.7583]
[1735162199747,1.27220652,3461.0,3460.7,35.0]
[1735162200253,2.09380652,3461.0,3460.3,0.8266]
[1735162200398,2.31169,3460.7,3460.1,1.20287203]
[1735162200805,0.8216,3461.0,3460.2,36.20287203]
[1735162201099,2.31158,3460.9,3460.2,36.20287203]
[1735162201518,2.31162,3460.8,3460.2,36.20287203]
[1735162201936,2.31162,3460.8,3460.2,35.0]
[1735162202648,2.0176892,3461.0,3460.2,35.0]
[1735162202649,1.1960892,3461.0,3460.3,0.8266]
[1735162203146,1.1960892,3460.9,3460.4,3.0]
[1735162203351,1.1960892,3460.9,3460.5,0.8266]
[1735162203515,1.1960892,3460.9,3460.7,0.8266]
[1735162204304,1.1960892,3460.9,3460.7,3.8266]
[1735162204504,1.1960892,3461.4,3460.9,4.3766]
[1735162204701,1.1960892,3461.4,3461.0,0.8266]
[1735162205010,1.1960892,3461.4,3461.3,35.0]
[1735162205850,1.1960892,3461.4,3461.3,35.8266]
[1735162206173,3.5068992,3462.0,3461.3,35.8266]
[1735162206461,3.5068992,3462.0,3461.3,3.67288631]
[1735162206689,1.1960892,3462.0,3461.3,0.8266]
[1735162206819,1.1960892,3462.0,3461.5,35.0]
[1735162206820,2.31093,3461.8,3461.5,35.0]
[1735162207237,0.8216,3461.7,3461.5,35.0]
[1735162207468,2.31126,3461.4,3460.7,0.8266]
[1735162207633,2.31107,3461.6,3460.8,0.68337801]
[1735162207851,2.31142,3461.1,3460.6,1.20287203]
[1735162208069,0.8216,3461.2,3460.6,1.20287203]
[1735162208070,0.8216,3461.2,3460.9,35.0]
[1735162208987,2.31125,3461.4,3461.0,0.7638]
[1735162209351,1.1960892,3461.8,3461.0,0.7638]
[1735162209558,1.1960892,3461.8,3461.1,0.55]
[1735162209761,3.5069692,3461.9,3461.2,0.43138]
[1735162209953,3.5069692,3461.9,3461.3,0.7638]
[1735162209954,1.1960892,3461.9,3461.3,0.7638]
[1735162210158,1.1960892,3461.9,3461.4,35.0]
[1735162211348,3.06122,3462.3,3461.4,35.0]
[1735162211549,2.31062,3462.3,3461.5,0.7638]
[1735162211782,2.31062,3462.3,3461.6,2.84628631]
[1735162212099,2.31062,3462.3,3461.5,0.7638]
[1735162212254,2.31062,3462.3,3461.7,35.0]
[1735162212954,0.7506,3462.5,3461.7,35.0]
[1735162213162,0.7506,3461.8,3460.9,0.7638]
[1735162213515,2.31126,3461.4,3460.7,1.20287203]
[1735162213662,3.06159,3461.8,3460.8,35.0]
[1735162213863,2.31134,3461.2,3460.8,35.0]
[1735162214194,2.31142,3461.1,3460.8,35.0]
[1735162217313,2.31147,3461.0,3460.8,35.0]
[1735162218413,2.31147,3461.0,3460.3,0.7687]
[1735162218579,2.31147,3461.0,3459.2,5.00718008]
[1735162218580,0.306207,3461.0,3460.0,3.7687]
[1735162218911,3.06183,3460.6,3460.4,35.0]
[1735162221332,2.31219,3460.0,3459.5,0.55490744]
[1735162221461,2.31193,3460.3,3459.3,1.97157203]
[1735162221668,2.31227,3459.8,3459.3,1.97157203]
[1735162221867,0.7501,3460.4,3459.6,35.0]
[1735162222399,2.31208,3460.1,3459.6,35.0]
[1735162222713,2.31208,3460.1,3459.7,2.84628631]
[1735162222917,1.1960892,3460.7,3459.6,35.0]
[1735162222918,2.31233,3459.7,3459.6,35.0]
[1735162223207,3.06243,3459.7,3459.6,35.0]
[1735162224171,3.01243,3459.7,3459.6,35.0]
[1735162225225,2.31217,3460.0,3459.6,35.0]
[1735162225513,2.31217,3460.0,3459.5,0.7687]
[1735162225999,0.7501,3460.2,3459.5,0.7687]
[1735162226316,2.31207,3460.1,3459.5,0.7687]
[1735162226516,2.31207,3460.1,3460.0,35.0]
[1735162232520,0.7958,3460.7,3460.1,0.8022]
[1735162232667,2.31185,3460.5,3460.1,0.8022]
[1735162233104,2.31168,3460.7,3460.2,35.0]
[1735162233279,2.31168,3460.7,3460.3,2.84628631]
[1735162233499,0.7958,3461.0,3460.3,2.84628631]
[1735162233704,2.3118,3460.5,3460.1,0.8022]
[1735162234020,2.3118,3460.5,3460.4,35.0]
[1735162234316,3.10731,3461.0,3460.4,35.0]
[1735162234317,2.31162,3460.8,3460.4,35.0]
[1735162234519,3.5074392,3461.2,3460.4,35.0]
[1735162234873,2.31135,3461.2,3460.4,35.0]
[1735162235174,2.31135,3461.2,3460.5,2.84628631]
[1735162236924,0.7958,3461.3,3460.5,2.84628631]
[1735162237228,2.31167,3460.7,3460.4,35.0]
[1735162238539,2.31145,3461.1,3460.4,35.0]
[1735162239050,0.7958,3461.3,3460.4,35.0]
[1735162239443,2.31166,3460.8,3460.4,35.0]
[1735162239742,2.31166,3460.8,3460.5,2.84628631]
[1735162239896,2.31145,3461.1,3460.5,2.84628631]
[1735162240096,2.31145,3461.1,3460.6,0.8022]
[1735162241342,1.1960892,3461.6,3460.7,2.67347933]
[1735162241546,1.1960892,3461.6,3461.2,2.67347933]
[1735162241748,1.1960892,3461.6,3461.3,1.3295811]
[1735162241917,1.1960892,3461.6,3461.3,1.30069393]
[1735162242105,1.1960892,3461.6,3461.5,2.31113]
[1735162242427,1.1960892,3461.8,3461.7,1.3522]
[1735162242632,1.1960892,3461.8,3461.7,5.00523933]
[1735162243952,2.31044,3462.6,3461.7,0.8022]
[1735162244151,2.31073,3462.2,3461.7,0.8022]
[1735162244352,2.31076,3462.1,3461.7,0.8022]
[1735162244836,2.31076,3462.1,3461.2,3.55]
[1735162245437,2.31056,3462.4,3461.4,2.67347933]
[1735162245610,2.31063,3462.3,3461.6,0.7907]
[1735162245822,2.31067,3462.2,3461.6,0.7907]
[1735162247576,0.7958,3462.5,3461.6,0.7907]
[1735162247781,0.8013,3462.3,3460.8,0.7907]
[1735162248084,2.31113,3461.6,3460.8,0.7907]
[1735162248260,2.31113,3461.5,3460.8,0.7907]
[1735162248467,2.31121,3461.4,3460.8,0.7907]
[1735162248984,0.8013,3461.7,3460.6,4.1533673]
[1735162249134,2.31135,3461.2,3460.6,4.1533673]
[1735162249338,2.31141,3461.1,3460.6,4.1533673]
[1735162249577,0.311221,3461.6,3460.6,4.1533673]
[1735162249783,2.31159,3460.9,3460.6,4.1533673]
[1735162251367,2.31162,3460.8,3460.6,4.1533673]
[1735162251737,3.11277,3461.0,3460.6,4.1533673]
[1735162254283,2.31147,3461.0,3460.6,4.1533673]
[1735162254442,2.31147,3461.0,3460.6,4.56870403]
[1735162255256,2.31147,3461.0,3460.6,4.1533673]
[1735162255862,2.31154,3460.9,3460.6,4.1533673]
[1735162257108,3.11254,3461.4,3460.6,4.1533673]
[1735162257401,2.31147,3461.0,3460.6,4.1533673]
[1735162258107,2.31133,3461.3,3460.6,4.1533673]
[1735162258313,2.31086,3462.0,3460.7,1.47338466]
[1735162258637,2.31115,3461.5,3460.7,1.47338466]
[1735162260365,2.31098,3461.8,3460.8,2.70237015]
[1735162260606,2.31098,3461.8,3460.9,0.7916]
[1735162260907,2.311,3461.7,3460.9,0.7916]
[1735162261060,2.311,3461.7,3461.0,0.6459394]
[1735162261463,2.31108,3461.6,3460.9,0.7916]
[1735162261663,2.31095,3461.8,3460.9,0.7916]
[1735162262452,2.31072,3462.2,3461.2,0.55]
[1735162262820,2.31075,3462.1,3461.2,0.55]
[1735162262962,2.31075,3462.1,3461.3,0.365304]
[1735162263814,2.31061,3462.3,3461.4,0.7916]
[1735162264210,3.08112,3462.6,3461.4,0.7916]
[1735162264382,2.31092,3461.9,3461.4,0.7916]
[1735162266566,3.08112,3462.6,3461.4,0.7916]
[1735162266768,2.31072,3462.2,3461.4,0.7916]
[1735162267114,2.31072,3462.2,3461.5,0.34650793]
[1735162269336,0.7707,3463.0,3461.6,0.7916]
[1735162269535,2.31034,3462.7,3461.8,0.7916]
[1735162269735,2.31026,3462.9,3462.0,0.7916]
[1735162269893,1.1960892,3463.1,3462.1,0.02888013]
[1735162269894,2.31034,3462.7,3462.1,0.02888013]
[1735162270239,2.31051,3462.5,3462.0,0.7916]
[1735162270734,2.31014,3463.0,3462.2,0.7916]
[1735162270941,2.31014,3463.0,3462.3,0.40150793]
[1735162271087,2.31021,3462.9,3462.3,0.40150793]
[1735162272540,2.31028,3462.8,3462.3,0.40150793]
[1735162272841,2.31034,3462.7,3462.2,0.7916]
[1735162273203,2.31005,3463.2,3462.2,0.7916]
[1735162273204,2.31019,3463.0,3462.2,0.7916]
[1735162275123,0.7707,3463.3,3462.2,0.7916]
[1735162275504,2.31041,3462.6,3462.2,0.7916]
[1735162275700,2.31046,3462.5,3462.2,0.7916]
[1735162275907,0.231046,3462.5,3461.8,0.7524]
[1735162276106,2.31119,3461.5,3461.2,1.20287203]
[1735162276341,2.31123,3461.4,3461.2,1.20287203]
[1735162276906,2.31123,3461.4,3461.1,0.7524]
[1735162277604,2.31101,3461.7,3461.1,0.7524]
[1735162277807,0.7901,3461.9,3461.1,0.7524]
[1735162278821,2.31107,3461.6,3461.1,0.7524]
[1735162280544,0.310117,3461.6,3460.7,0.7524]
[1735162280748,2.3116,3460.8,3460.6,4.1533673]
[1735162281491,2.31167,3460.7,3460.6,4.1533673]
[1735162285458,5.31167,3460.7,3460.6,4.1533673]
[1735162285901,2.31238,3459.7,3459.4,1.20803462]
[1735162286105,2.31242,3459.6,3459.4,1.20803462]
[1735162286472,2.31242,3459.6,3459.0,1.96043462]
[1735162287213,2.31227,3459.8,3459.0,2.33768328]
[1735162288270,2.31227,3459.8,3459.0,1.12964866]
[1735162290399,2.31234,3459.7,3459.0,0.7524]
[1735162295590,2.31234,3459.7,3459.6,35.0]
[1735162296170,3.13574,3459.7,3459.6,35.0]
[1735162297122,3.13574,3459.7,3457.8,2.31356]
[1735162297123,2.31297,3458.8,3458.4,0.7908]
[1735162297286,0.8234,3459.5,3458.4,0.7908]
[1735162297704,2.31263,3459.3,3458.5,35.0289123]
[1735162298024,2.31268,3459.2,3458.5,35.0]
[1735162298230,2.3124,3459.7,3458.5,35.0]
[1735162298440,2.31258,3459.4,3458.6,0.7908]
[1735162298726,2.31258,3459.4,3458.7,2.84628631]
[1735162299225,2.31261,3459.3,3458.7,2.84628631]
[1735162299729,2.31267,3459.2,3458.7,2.84628631]
[1735162299881,2.31287,3458.9,3458.6,0.7908]
[1735162300231,0.8234,3459.2,3458.5,35.0]
[1735162300529,2.31296,3458.8,3458.5,35.0]
[1735162301285,2.31279,3459.1,3458.5,35.0]
[1735162301529,2.31307,3458.6,3458.5,35.0]
[1735162303527,3.13647,3458.6,3458.5,35.0]
[1735162307513,2.31338,3458.2,3457.7,0.7908]
[1735162308062,2.31338,3458.2,3457.8,35.0]
[1735162308752,2.31344,3458.1,3457.8,35.0]
[1735162308939,2.31314,3458.5,3457.8,35.0]
[1735162309943,0.8234,3458.6,3457.8,37.84628631]
[1735162311435,2.31331,3458.3,3457.8,37.84628631]
[1735162312171,0.8234,3458.6,3457.8,35.0]
[1735162312370,2.31345,3458.1,3457.8,35.0]
[1735162313258,0.8234,3458.6,3457.8,35.0]
[1735162313690,2.31327,3458.3,3457.8,35.0]
[1735162316080,0.8234,3458.6,3457.8,35.0]
[1735162316415,2.31315,3458.5,3457.8,37.84628631]
[1735162318264,2.31322,3458.4,3457.8,37.84628631]
[1735162318607,2.31294,3458.8,3457.8,37.84628631]
[1735162318779,2.31324,3458.4,3457.8,35.0]
[1735162319709,2.31336,3458.2,3457.8,35.0]
[1735162319908,2.31344,3458.1,3457.8,35.0]
[1735162321004,2.31354,3457.9,3457.8,35.0]
[1735162321714,0.7533,3458.3,3457.8,35.0]
[1735162321715,2.31343,3458.1,3457.8,35.0]
[1735162322570,2.31354,3457.9,3457.8,35.0]
[1735162322788,2.3136,3457.8,3457.0,0.7689]
[1735162323125,2.31395,3457.3,3457.0,0.7689]
[1735162323281,2.31382,3457.5,3457.1,35.0]
[1735162323480,2.31389,3457.4,3457.1,35.0]
[1735162325425,2.31401,3457.2,3457.1,35.0]
[1735162325922,3.06731,3457.2,3456.4,0.7689]
[1735162326133,2.31437,3456.7,3455.7,0.7689]
[1735162326280,2.31448,3456.5,3455.7,0.7689]
[1735162326482,2.31455,3456.4,3455.7,0.7689]
[1735162326945,2.31438,3456.7,3455.8,35.0]
[1735162329147,0.7533,3456.9,3455.9,0.7945]
[1735162329513,0.7931,3457.2,3456.0,0.02893315]
[1735162329722,3.10717,3457.2,3456.7,35.0]
[1735162329921,0.8652409,3457.2,3456.8,0.7945]
[1735162330116,3.10684,3457.6,3456.8,0.7945]
[1735162330682,3.10684,3457.6,3456.9,35.0]
[1735162331008,2.620133,3458.1,3456.9,35.0]
[1735162331212,1.98399936,3458.3,3457.1,0.7945]
[1735162331693,0.7931,3458.3,3457.4,35.0]
[1735162331893,0.7931,3458.6,3457.5,0.7945]
[1735162332828,2.31244,3459.6,3457.4,35.0]
[1735162332829,2.31287,3458.9,3457.6,4.98719933]
[1735162332979,2.31287,3458.9,3457.7,5.98334251]
[1735162333180,2.31287,3458.9,3457.8,2.3136]
[1735162333398,0.7931,3459.3,3457.9,35.7945]
[1735162333646,2.31274,3459.1,3458.0,0.7945]
[1735162334167,0.7931,3459.3,3458.0,0.7945]
[1735162334369,2.31304,3458.7,3458.0,0.7945]
[1735162334532,2.31304,3458.7,3458.0,3.64078631]
[1735162334860,5.31267,3459.2,3458.0,3.64078631]
[1735162335009,5.31244,3459.6,3458.2,0.7597]
[1735162336063,2.31275,3459.1,3458.2,0.7597]
[1735162337059,2.31275,3459.1,3458.3,35.0]
[1735162337352,2.31261,3459.3,3458.4,0.7597]
[1735162338042,2.31261,3459.3,3458.5,35.0]
[1735162339424,0.8141,3459.7,3458.5,35.0]
[1735162339613,2.31247,3459.5,3458.5,35.0]
[1735162339814,2.31266,3459.3,3458.5,35.0]
[1735162340032,2.31266,3459.3,3458.5,37.84628631]
[1735162340451,2.31267,3459.2,3458.5,37.84628631]
[1735162344657,3.0,3459.6,3458.5,35.0]
[1735162344999,0.8141,3459.1,3458.4,0.7597]
[1735162345174,2.31295,3458.8,3458.4,0.7597]
[1735162345373,2.31295,3458.8,3458.4,35.7597]
[1735162345878,0.8141,3459.1,3458.4,35.7597]
[1735162346203,2.31302,3458.7,3458.4,35.7597]
[1735162347711,2.31302,3458.7,3458.4,35.0]
[1735162348384,2.31314,3458.5,3458.4,35.0]
[1735162349511,2.31323,3458.4,3457.8,0.7597]
[1735162349676,2.31332,3458.3,3457.8,0.7597]
[1735162349878,0.8,3458.5,3457.9,35.0]
[1735162350080,2.31347,3458.0,3457.9,35.0]
[1735162350277,2.544817,3458.0,3457.9,35.0]
[1735162352399,2.3136,3457.8,3456.6,0.8257]
[1735162352807,2.3136,3457.8,3457.0,35.0]
[1735162353124,2.67347933,3457.8,3457.0,35.0]
[1735162353325,2.31396,3457.3,3457.0,35.0]
[1735162353498,2.31407,3457.1,3457.0,35.0]
[1735162354127,3.11407,3457.1,3457.0,35.0]
[1735162354928,3.11407,3457.1,3456.4,0.8257]
[1735162355227,3.11407,3457.1,3456.5,35.0]
[1735162356625,2.31392,3457.4,3456.5,37.84628631]
[1735162356929,2.31392,3457.4,3456.6,0.8257]
[1735162357077,2.31395,3457.3,3456.6,0.8257]
[1735162357279,2.31395,3457.3,3457.0,35.0]
[1735162357913,2.314,3457.3,3457.0,35.0]
[1735162359287,2.3138,3457.6,3457.0,37.84628631]
[1735162359579,2.3138,3457.6,3457.1,0.8257]
[1735162360402,2.31382,3457.5,3457.1,0.8257]
[1735162362492,2.31382,3457.5,3457.2,35.0]
[1735162363069,2.31421,3456.9,3456.7,0.8257]
[1735162363343,2.31421,3456.9,3456.3,0.8257]
[1735162363636,2.31407,3457.2,3456.3,0.8257]
[1735162364388,2.31374,3457.6,3456.4,0.7975]
[1735162364752,2.31374,3457.6,3456.6,0.7975]
[1735162364886,2.31374,3457.6,3456.7,2.84628631]
[1735162365545,2.31374,3457.6,3456.9,0.7975]
[1735162367233,2.31381,3457.5,3456.9,0.7975]
[1735162369238,2.31366,3457.8,3456.9,0.7975]
[1735162369465,2.31349,3458.0,3456.9,0.7975]
[1735162369600,2.31335,3458.2,3457.1,0.7975]
[1735162370340,3.0,3458.4,3457.0,2.625316]
[1735162370341,2.31321,3458.4,3457.3,0.7975]
[1735162370519,1.19536695,3458.5,3457.5,2.67347933]
[1735162370698,1.19536695,3458.5,3457.6,3.11123]
[1735162370894,1.19536695,3458.5,3457.8,0.7975]
[1735162371110,2.87897625,3458.8,3457.8,0.7975]
[1735162371533,2.31295,3458.8,3457.8,0.7975]
[1735162371698,1.19536695,3458.9,3457.9,3.13994644]
[1735162371925,1.19536695,3458.9,3458.0,3.7975]
[1735162372130,1.19536695,3458.9,3458.2,0.7975]
[1735162372361,4.10584042,3459.1,3458.2,0.7975]
[1735162372362,2.31279,3459.1,3458.2,0.7975]
[1735162372785,2.31279,3459.1,3458.2,0.82641365]
[1735162373146,2.31279,3459.1,3458.2,0.7975]
[1735162373642,0.7899,3459.5,3458.2,0.7975]
[1735162373844,2.31254,3459.4,3458.4,0.7975]
[1735162375531,2.31262,3459.3,3458.4,0.7975]
[1735162381587,2.31269,3459.2,3458.4,0.7975]
[1735162387580,2.31274,3459.1,3458.4,0.7975]
[1735162387881,2.31274,3459.1,3458.5,0.15327322]
[1735162388508,2.31274,3459.1,3458.6,0.8043]
[1735162393114,2.31266,3459.3,3458.6,0.8043]
[1735162393316,2.31233,3459.7,3458.6,0.8043]
[1735162393502,2.31269,3459.2,3458.6,0.8043]
[1735162393703,2.31269,3459.2,3458.6,0.97358054]
[1735162394026,2.31277,3459.1,3458.6,0.97358054]
[1735162398552,0.785,3459.5,3458.6,0.8043]
[1735162398705,0.785,3459.5,3457.4,1.35527802]
[1735162398706,2.31307,3458.7,3457.8,0.7595]
[1735162398903,2.31307,3458.7,3457.8,3.7595]
[1735162399652,0.785,3459.5,3458.1,2.67347933]
[1735162399799,2.31269,3459.2,3458.3,0.7595]
[1735162399994,3.09748,3459.5,3458.3,0.7595]
[1735162400242,0.785,3459.3,3458.3,0.7595]
[1735162400848,2.31306,3458.7,3458.3,0.7595]
[1735162405612,0.785,3459.1,3458.0,0.7595]
[1735162405809,2.31326,3458.4,3458.0,0.7595]
[1735162407058,0.785,3458.9,3457.5,1.3095]
[1735162407262,0.785,3458.9,3457.5,0.7595]
[1735162407263,2.31335,3458.2,3457.5,0.7595]
[1735162408263,2.31322,3458.4,3457.3,5.67347933]
[1735162408480,2.31327,3458.3,3457.7,0.8165]
[1735162408606,2.31338,3458.2,3457.7,0.8165]
[1735162408805,2.31322,3458.4,3457.7,0.8165]
[1735162411726,3.3785,3459.0,3457.8,0.55]
[1735162411727,2.31304,3458.7,3457.8,0.55]
[1735162411929,2.31304,3458.7,3457.9,0.765]
[1735162412829,3.3785,3459.0,3457.8,0.55]
[1735162412830,2.31284,3459.0,3458.3,0.765]
[1735162413031,3.50804695,3459.2,3458.4,0.34384793]
[1735162413385,3.50804695,3459.2,3458.5,0.765]
[1735162413856,2.31268,3459.2,3458.5,0.765]
[1735162414253,2.31274,3459.1,3458.5,0.765]
[1735162415064,3.0,3459.4,3458.0,0.765]
[1735162415269,0.56019433,3459.3,3458.0,0.765]
[1735162415557,2.31281,3459.0,3458.2,0.765]
[1735162415761,2.3126,3459.3,3458.2,0.765]
[1735162415934,2.31309,3458.6,3458.2,0.765]
[1735162416332,2.31309,3458.6,3458.1,35.0]
[1735162416333,0.8249,3458.6,3458.1,35.0]
[1735162416634,0.8249,3458.6,3458.1,38.71516493]
[1735162416961,2.31334,3458.2,3458.1,38.71516493]
[1735162417739,2.31334,3458.2,3458.1,35.0]
[1735162418365,2.31327,3458.3,3458.1,35.0]
[1735162418736,1.19536695,3458.6,3458.2,0.765]
[1735162418938,1.19536695,3458.5,3458.2,0.765]
[1735162420396,2.31305,3458.7,3458.2,0.765]
[1735162421162,1.78832952,3458.8,3458.2,0.765]
[1735162421501,2.31307,3458.6,3458.2,0.765]
[1735162421661,2.31314,3458.5,3458.2,0.765]
[1735162422399,2.31314,3458.5,3458.3,35.0]
[1735162423612,2.31301,3458.7,3458.3,35.0]
[1735162423940,0.59296257,3458.8,3458.3,35.0]
[1735162424141,2.31308,3458.6,3458.3,35.0]
[1735162429097,2.3132,3458.4,3458.3,35.0]
[1735162429297,0.7817,3458.4,3457.8,1.20907075]
[1735162429606,2.31354,3457.9,3457.8,1.20907075]
[1735162429902,2.31354,3457.9,3457.7,36.20907075]
[1735162430042,0.7817,3458.4,3457.7,36.20907075]
[1735162430240,2.3136,3457.8,3457.7,36.20907075]
[1735162431447,2.3136,3457.8,3457.7,35.0]
[1735162440270,0.7537,3457.4,3456.8,0.8285]
[1735162440474,2.31407,3457.2,3456.8,0.8285]
[1735162440615,2.31407,3457.2,3456.9,35.0]
[1735162442222,2.31386,3457.5,3456.9,35.0]
[1735162442422,2.31386,3457.5,3457.0,2.84628631]
[1735162442934,2.31386,3457.5,3456.8,0.8285]
[1735162443130,2.31386,3457.5,3457.1,35.0]
[1735162443866,2.31368,3457.7,3457.1,35.0]
[1735162445221,2.31368,3457.7,3457.2,0.8285]
[1735162446167,2.31354,3457.9,3457.2,0.8285]
[1735162446337,2.31354,3457.9,3457.3,2.84628631]
[1735162447667,1.94906695,3458.3,3457.4,0.8285]
[1735162447837,2.31328,3458.3,3457.5,0.02891961]
[1735162448039,2.31328,3458.3,3457.6,1.69761252]
[1735162448233,2.31335,3458.2,3457.7,35.0]
[1735162448767,1.19536695,3458.4,3457.8,0.8285]
[1735162449264,1.19536695,3458.7,3457.8,0.8285]
[1735162449433,1.19536695,3458.7,3458.0,0.8285]
[1735162449641,3.50838695,3458.7,3458.1,2.84628631]
[1735162450366,3.7537,3459.0,3458.1,2.84628631]
[1735162450539,2.31315,3458.5,3458.0,0.8285]
[1735162456586,2.31315,3458.5,3458.1,35.0]
[1735162460112,2.31374,3457.7,3457.4,0.8248]